[Event "*** SCC Grand Prix: Titled Tuesday Blitz"]
[Site "Chess.com"]
[Date "2020.08.25"]
[Round "6"]
[White "wannabe2700"]
[Black "djano"]
[Result "0-1"]
[WhiteElo "2623"]
[BlackElo "2474"]
[TimeControl "180+1"]
[EndTime "11:09:22 PDT"]
[Termination "djano won on time"]

1. e4 {[%clk 0:03:00.9]} 1... e5 {[%clk 0:02:58.2]} 2. Nf3 {[%clk 0:03:00.8]}
2... Nc6 {[%clk 0:02:58.4]} 3. Bb5 {[%clk 0:03:01.4]} 3... Nf6 {[%clk
0:02:58.2]} 4. O-O {[%clk 0:03:01.3]} 4... Nxe4 {[%clk 0:02:58.3]} 5. d4 {[%clk
0:03:01.7]} 5... Nd6 {[%clk 0:02:58.5]} 6. Bxc6 {[%clk 0:03:02.3]} 6... dxc6
{[%clk 0:02:59.4]} 7. dxe5 {[%clk 0:03:02.9]} 7... Nf5 {[%clk 0:02:59.7]} 8.
Qxd8+ {[%clk 0:03:03.5]} 8... Kxd8 {[%clk 0:03:00.6]} 9. h3 {[%clk 0:03:03.9]}
9... h6 {[%clk 0:02:53.3]} 10. Nc3 {[%clk 0:02:57.9]} 10... Bd7 {[%clk 0:02:53]}
11. Rd1 {[%clk 0:02:57.4]} 11... Kc8 {[%clk 0:02:52.4]} 12. g4 {[%clk
0:02:35.2]} 12... Ne7 {[%clk 0:02:49.5]} 13. Kg2 {[%clk 0:02:34.7]} 13... b6
{[%clk 0:02:42.3]} 14. Bf4 {[%clk 0:02:31.1]} 14... c5 {[%clk 0:02:33.3]} 15.
Nd5 {[%clk 0:02:14.8]} 15... Nxd5 {[%clk 0:02:29.3]} 16. Rxd5 {[%clk 0:02:15.7]}
16... Bc6 {[%clk 0:02:29.6]} 17. Rd2 {[%clk 0:02:11.9]} 17... Be7 {[%clk
0:02:29.3]} 18. Rad1 {[%clk 0:02:10.4]} 18... Rd8 {[%clk 0:02:29.2]} 19. Rxd8+
{[%clk 0:02:03.6]} 19... Bxd8 {[%clk 0:02:30.1]} 20. Kg3 {[%clk 0:02:03.5]}
20... a5 {[%clk 0:02:18.8]} 21. h4 {[%clk 0:01:58.7]} 21... Bxf3 {[%clk
0:02:10.1]} 22. Kxf3 {[%clk 0:01:59.6]} 22... Bxh4 {[%clk 0:02:10.2]} 23. Be3
{[%clk 0:01:44.8]} 23... a4 {[%clk 0:02:00.8]} 24. a3 {[%clk 0:01:35.9]} 24...
Be7 {[%clk 0:01:59.8]} 25. Ke4 {[%clk 0:01:34]} 25... Ra5 {[%clk 0:01:53.2]} 26.
Bd2 {[%clk 0:01:27.1]} 26... Ra8 {[%clk 0:01:44]} 27. f4 {[%clk 0:01:26.6]}
27... Kb7 {[%clk 0:01:39.5]} 28. Be3 {[%clk 0:01:23.9]} 28... Rd8 {[%clk
0:01:38.4]} 29. Rh1 {[%clk 0:01:20.2]} 29... b5 {[%clk 0:01:30.3]} 30. g5 {[%clk
0:01:13]} 30... hxg5 {[%clk 0:01:31.2]} 31. fxg5 {[%clk 0:01:13.5]} 31... b4
{[%clk 0:01:31.8]} 32. Rh7 {[%clk 0:01:10.4]} 32... Bf8 {[%clk 0:01:24.9]} 33.
g6 {[%clk 0:00:50.8]} 33... fxg6 {[%clk 0:01:23.5]} 34. Bg5 {[%clk 0:00:51.1]}
34... Re8 {[%clk 0:01:10.7]} 35. Rh8 {[%clk 0:00:47]} 35... bxa3 {[%clk
0:01:08.6]} 36. bxa3 {[%clk 0:00:46.7]} 36... Kc6 {[%clk 0:01:09.1]} 37. c4
{[%clk 0:00:46]} 37... Kd7 {[%clk 0:01:05.7]} 38. Be3 {[%clk 0:00:43.5]} 38...
Be7 {[%clk 0:00:56]} 39. Rh7 {[%clk 0:00:42.1]} 39... Bf8 {[%clk 0:00:45.7]} 40.
Rh8 {[%clk 0:00:40.5]} 40... Be7 {[%clk 0:00:33.2]} 41. e6+ {[%clk 0:00:39.8]}
41... Kd8 {[%clk 0:00:30.8]} 42. Rh1 {[%clk 0:00:33.3]} 42... c6 {[%clk
0:00:24.3]} 43. Rd1+ {[%clk 0:00:19]} 43... Kc8 {[%clk 0:00:24.1]} 44. Bf4
{[%clk 0:00:07]} 44... Bf6 {[%clk 0:00:23.1]} 45. Rd6 {[%clk 0:00:07.2]} 45...
Kb7 {[%clk 0:00:14.2]} 46. Be5 {[%clk 0:00:07]} 46... Re7 {[%clk 0:00:12.1]} 47.
Bf4 {[%clk 0:00:01.8]} 47... g5 {[%clk 0:00:11.6]} 48. Bg3 {[%clk 0:00:02.2]}
48... g4 {[%clk 0:00:11.4]} 49. Bf4 {[%clk 0:00:02.5]} 49... g5 {[%clk
0:00:10.7]} 50. Bg3 {[%clk 0:00:02.9]} 50... Kb6 {[%clk 0:00:11.1]} 51. Kf5
{[%clk 0:00:03.3]} 51... Bd4 {[%clk 0:00:08.6]} 52. Rd7 {[%clk 0:00:02.2]} 52...
Re8 {[%clk 0:00:08.9]} 53. e7 {[%clk 0:00:02.1]} 53... Be3 {[%clk 0:00:03.7]}
0-1

[Event "*** SCC Grand Prix: Titled Tuesday Blitz"]
[Site "Chess.com"]
[Date "2020.08.25"]
[Round "6"]
[White "Duhless"]
[Black "GigaQuparadze"]
[Result "1/2-1/2"]
[WhiteElo "3002"]
[BlackElo "2825"]
[TimeControl "180+1"]
[EndTime "11:09:23 PDT"]
[Termination "Game drawn - insufficient material"]

1. e4 {[%clk 0:03:00.9]} 1... c5 {[%clk 0:02:59.6]} 2. Nf3 {[%clk 0:02:59.5]}
2... e6 {[%clk 0:02:59.3]} 3. Nc3 {[%clk 0:02:58.3]} 3... a6 {[%clk 0:02:59]} 4.
g3 {[%clk 0:02:58.1]} 4... b5 {[%clk 0:02:59.3]} 5. Bg2 {[%clk 0:02:58.1]} 5...
Bb7 {[%clk 0:02:59.8]} 6. d4 {[%clk 0:02:57.9]} 6... cxd4 {[%clk 0:03:00.7]} 7.
Nxd4 {[%clk 0:02:58.8]} 7... Nc6 {[%clk 0:03:01.1]} 8. O-O {[%clk 0:02:57.6]}
8... Nxd4 {[%clk 0:03:01.3]} 9. Qxd4 {[%clk 0:02:57.1]} 9... Ne7 {[%clk
0:03:01.9]} 10. Bf4 {[%clk 0:02:55.9]} 10... f6 {[%clk 0:02:54.3]} 11. Qd3
{[%clk 0:02:52.5]} 11... Ng6 {[%clk 0:02:51.6]} 12. Be3 {[%clk 0:02:47.9]} 12...
Ne5 {[%clk 0:02:49.5]} 13. Qe2 {[%clk 0:02:48]} 13... Rc8 {[%clk 0:02:46.1]} 14.
Rad1 {[%clk 0:02:45.1]} 14... Qc7 {[%clk 0:02:43.9]} 15. Bd4 {[%clk 0:02:32.9]}
15... Bc5 {[%clk 0:02:38.7]} 16. Bxc5 {[%clk 0:02:23.6]} 16... Qxc5 {[%clk
0:02:39.6]} 17. Kh1 {[%clk 0:02:23.9]} 17... b4 {[%clk 0:02:37.3]} 18. Nb1
{[%clk 0:02:18.3]} 18... Qxc2 {[%clk 0:02:35.3]} 19. Rd2 {[%clk 0:02:18.2]}
19... Qc4 {[%clk 0:02:31.7]} 20. Qh5+ {[%clk 0:02:11.9]} 20... g6 {[%clk
0:02:31.2]} 21. Qh4 {[%clk 0:02:09.1]} 21... O-O {[%clk 0:02:29.8]} 22. b3
{[%clk 0:02:04.7]} 22... Qb5 {[%clk 0:02:17.8]} 23. Rfd1 {[%clk 0:02:00.1]}
23... g5 {[%clk 0:01:56.1]} 24. Qh6 {[%clk 0:01:49.7]} 24... Rf7 {[%clk
0:01:41.6]} 25. h3 {[%clk 0:01:47.3]} 25... Ng6 {[%clk 0:01:35.5]} 26. Qh5
{[%clk 0:01:43.5]} 26... Rc5 {[%clk 0:01:28.8]} 27. Rd4 {[%clk 0:01:36]} 27...
Bc6 {[%clk 0:01:28.2]} 28. Nd2 {[%clk 0:01:33.9]} 28... Rc2 {[%clk 0:01:26.4]}
29. Nc4 {[%clk 0:01:32.6]} 29... Rxf2 {[%clk 0:01:22.7]} 30. Nd6 {[%clk
0:01:28.5]} 30... Qe2 {[%clk 0:01:22]} 31. Qxe2 {[%clk 0:01:27.4]} 31... Rxe2
{[%clk 0:01:22.1]} 32. Nxf7 {[%clk 0:01:27.2]} 32... Kxf7 {[%clk 0:01:23]} 33.
R4d2 {[%clk 0:01:22.7]} 33... Re3 {[%clk 0:01:22.6]} 34. Rd3 {[%clk 0:01:18.3]}
34... Re2 {[%clk 0:01:22.7]} 35. R3d2 {[%clk 0:01:18]} 35... Re3 {[%clk
0:01:18.2]} 36. Rd3 {[%clk 0:01:17.2]} 36... Rxd3 {[%clk 0:01:12.6]} 37. Rxd3
{[%clk 0:01:16.6]} 37... Ne5 {[%clk 0:01:13.1]} 38. Rd2 {[%clk 0:01:13.1]} 38...
a5 {[%clk 0:01:12.7]} 39. Kg1 {[%clk 0:01:12.6]} 39... Ke7 {[%clk 0:01:12.3]}
40. Kf2 {[%clk 0:01:12.2]} 40... h5 {[%clk 0:01:12.5]} 41. Ke3 {[%clk
0:01:06.7]} 41... Ng6 {[%clk 0:01:12.7]} 42. Bf3 {[%clk 0:01:00.1]} 42... h4
{[%clk 0:01:12.6]} 43. Bh5 {[%clk 0:00:59.8]} 43... Ne5 {[%clk 0:01:07.6]} 44.
gxh4 {[%clk 0:00:59.7]} 44... gxh4 {[%clk 0:01:08.5]} 45. Be2 {[%clk 0:00:31.7]}
45... d5 {[%clk 0:01:08.3]} 46. exd5 {[%clk 0:00:29.2]} 46... Bxd5 {[%clk
0:01:09.2]} 47. Rc2 {[%clk 0:00:20.5]} 47... Kd6 {[%clk 0:01:09.3]} 48. Rc8
{[%clk 0:00:20.1]} 48... f5 {[%clk 0:01:02.5]} 49. Rh8 {[%clk 0:00:17.2]} 49...
f4+ {[%clk 0:01:02.1]} 50. Kf2 {[%clk 0:00:17.3]} 50... f3 {[%clk 0:01:01.6]}
51. Bf1 {[%clk 0:00:17.3]} 51... Ng6 {[%clk 0:01:01.4]} 52. Rh6 {[%clk
0:00:11.6]} 52... Be4 {[%clk 0:01:01.4]} 53. Ke3 {[%clk 0:00:10.7]} 53... Ke5
{[%clk 0:01:01.5]} 54. Rh5+ {[%clk 0:00:09.6]} 54... Bf5 {[%clk 0:01:01.7]} 55.
Kxf3 {[%clk 0:00:08.8]} 55... Kd4 {[%clk 0:01:01.3]} 56. Rg5 {[%clk 0:00:04.9]}
56... Kc3 {[%clk 0:00:56.8]} 57. Bc4 {[%clk 0:00:04.5]} 57... Ne5+ {[%clk
0:00:55.5]} 58. Ke3 {[%clk 0:00:02.9]} 58... Nxc4+ {[%clk 0:00:56]} 59. bxc4
{[%clk 0:00:03.8]} 59... Kxc4 {[%clk 0:00:56.6]} 60. Rh5 {[%clk 0:00:04.2]}
60... a4 {[%clk 0:00:54.7]} 61. Rxh4+ {[%clk 0:00:04.6]} 61... Kc3 {[%clk
0:00:55]} 62. Rh8 {[%clk 0:00:04.1]} 62... Kb2 {[%clk 0:00:52.5]} 63. Rb8 {[%clk
0:00:04]} 63... b3 {[%clk 0:00:50.7]} 64. axb3 {[%clk 0:00:04.4]} 64... a3
{[%clk 0:00:51]} 65. h4 {[%clk 0:00:03.2]} 65... a2 {[%clk 0:00:51.3]} 66. Ra8
{[%clk 0:00:03.6]} 66... Kxb3 {[%clk 0:00:51.6]} 67. Kf4 {[%clk 0:00:03.7]}
67... Kb2 {[%clk 0:00:51.7]} 68. Rxa2+ {[%clk 0:00:03.6]} 68... Kxa2 {[%clk
0:00:51.4]} 69. Ke5 {[%clk 0:00:04.5]} 69... Kb3 {[%clk 0:00:51.6]} 70. h5
{[%clk 0:00:05.4]} 70... Kc4 {[%clk 0:00:51.9]} 71. h6 {[%clk 0:00:06.3]} 71...
Kc5 {[%clk 0:00:52.3]} 72. h7 {[%clk 0:00:07.2]} 72... Bxh7 {[%clk 0:00:52.1]}
73. Kxe6 {[%clk 0:00:08.1]} 1/2-1/2

[Event "*** SCC Grand Prix: Titled Tuesday Blitz"]
[Site "Chess.com"]
[Date "2020.08.25"]
[Round "6"]
[White "Sychev_Klementy"]
[Black "Rodalquilar"]
[Result "1-0"]
[WhiteElo "2767"]
[BlackElo "2626"]
[TimeControl "180+1"]
[EndTime "11:09:24 PDT"]
[Termination "Sychev_Klementy won by checkmate"]

1. e4 {[%clk 0:03:00.9]} 1... d5 {[%clk 0:03:00.2]} 2. exd5 {[%clk 0:02:59.3]}
2... Qxd5 {[%clk 0:03:01.1]} 3. Nc3 {[%clk 0:02:59]} 3... Qa5 {[%clk 0:03:01.2]}
4. d4 {[%clk 0:02:59]} 4... Nf6 {[%clk 0:03:01.5]} 5. Nf3 {[%clk 0:02:59]} 5...
Bf5 {[%clk 0:03:01.8]} 6. Bc4 {[%clk 0:02:28.9]} 6... e6 {[%clk 0:03:02]} 7. Bd2
{[%clk 0:02:28.6]} 7... Bb4 {[%clk 0:03:02]} 8. a3 {[%clk 0:02:19.8]} 8... Bxc3
{[%clk 0:03:01.7]} 9. Bxc3 {[%clk 0:02:20.7]} 9... Qb6 {[%clk 0:03:02.4]} 10. d5
{[%clk 0:02:20.9]} 10... exd5 {[%clk 0:02:57.5]} 11. Bxd5 {[%clk 0:02:08.2]}
11... O-O {[%clk 0:02:57.3]} 12. Bxf6 {[%clk 0:01:11]} 12... gxf6 {[%clk
0:02:58.2]} 13. O-O {[%clk 0:01:07.2]} 13... Nc6 {[%clk 0:02:49.1]} 14. Qc1
{[%clk 0:00:57.4]} 14... Rad8 {[%clk 0:02:26.5]} 15. c4 {[%clk 0:00:28.7]} 15...
Ne7 {[%clk 0:02:15.6]} 16. Qf4 {[%clk 0:00:27.8]} 16... Qd6 {[%clk 0:01:59.1]}
17. Qh4 {[%clk 0:00:14.7]} 17... Nxd5 {[%clk 0:01:39.3]} 18. cxd5 {[%clk
0:00:14.6]} 18... Qxd5 {[%clk 0:01:37.5]} 19. Qxf6 {[%clk 0:00:14.2]} 19... Rd6
{[%clk 0:01:38]} 20. Qc3 {[%clk 0:00:12.8]} 20... Be4 {[%clk 0:01:23.7]} 21.
Rfe1 {[%clk 0:00:08.7]} 21... Rfd8 {[%clk 0:00:53.9]} 22. h3 {[%clk 0:00:05.1]}
22... Rc6 {[%clk 0:00:28.2]} 23. Qe3 {[%clk 0:00:04.2]} 23... Bxf3 {[%clk
0:00:27.9]} 24. gxf3 {[%clk 0:00:04.3]} 24... Rg6+ {[%clk 0:00:23]} 25. Kh2
{[%clk 0:00:04.3]} 25... Qd6+ {[%clk 0:00:18.2]} 26. f4 {[%clk 0:00:04.7]} 26...
Rf6 {[%clk 0:00:17.3]} 27. Rg1+ {[%clk 0:00:04.3]} 27... Kf8 {[%clk 0:00:17.7]}
28. Rad1 {[%clk 0:00:04]} 28... Qxd1 {[%clk 0:00:06.1]} 29. Rxd1 {[%clk
0:00:04.9]} 29... Rxd1 {[%clk 0:00:06.7]} 30. Qc5+ {[%clk 0:00:05]} 30... Rdd6
{[%clk 0:00:04.5]} 31. Qxc7 {[%clk 0:00:04.6]} 31... Rb6 {[%clk 0:00:05]} 32.
Qd8+ {[%clk 0:00:04.1]} 32... Kg7 {[%clk 0:00:05.3]} 33. Qd4 {[%clk 0:00:04.1]}
33... Kf8 {[%clk 0:00:04.8]} 34. b4 {[%clk 0:00:03.8]} 34... Rfd6 {[%clk
0:00:04.3]} 35. Qh8+ {[%clk 0:00:03.2]} 35... Ke7 {[%clk 0:00:04.9]} 36. Qxh7
{[%clk 0:00:03.8]} 36... Rg6 {[%clk 0:00:05.6]} 37. Qh4+ {[%clk 0:00:03.1]}
37... Rbf6 {[%clk 0:00:05.8]} 38. f5 {[%clk 0:00:02.8]} 38... Rh6 {[%clk
0:00:05.4]} 39. Qe4+ {[%clk 0:00:02.5]} 39... Kf8 {[%clk 0:00:05.6]} 40. Qxb7
{[%clk 0:00:02.4]} 40... Rxf5 {[%clk 0:00:05.7]} 41. Qc8+ {[%clk 0:00:02.4]}
41... Kg7 {[%clk 0:00:05]} 42. Qxf5 {[%clk 0:00:03.3]} 42... Rf6 {[%clk
0:00:05.9]} 43. Qg5+ {[%clk 0:00:03.2]} 43... Rg6 {[%clk 0:00:06.3]} 44. Qe5+
{[%clk 0:00:03.4]} 44... Rf6 {[%clk 0:00:06.7]} 45. f4 {[%clk 0:00:03.4]} 45...
Kg6 {[%clk 0:00:07.6]} 46. Qg5+ {[%clk 0:00:03.3]} 46... Kh7 {[%clk 0:00:05.8]}
47. Qxf6 {[%clk 0:00:03.5]} 47... a5 {[%clk 0:00:06.2]} 48. bxa5 {[%clk
0:00:03.6]} 48... Kg8 {[%clk 0:00:06.3]} 49. a6 {[%clk 0:00:03.9]} 49... Kh7
{[%clk 0:00:06.8]} 50. a7 {[%clk 0:00:04]} 50... Kg8 {[%clk 0:00:07.4]} 51. Kg3
{[%clk 0:00:04.3]} 51... Kh7 {[%clk 0:00:08.3]} 52. h4 {[%clk 0:00:04.9]} 52...
Kg8 {[%clk 0:00:08.4]} 53. Kg4 {[%clk 0:00:05.3]} 53... Kh7 {[%clk 0:00:09.3]}
54. Kg5 {[%clk 0:00:05.6]} 54... Kg8 {[%clk 0:00:10.2]} 55. a8=Q+ {[%clk
0:00:05.8]} 55... Kh7 {[%clk 0:00:11.1]} 56. Qah8# {[%clk 0:00:02.6]} 1-0

[Event "*** SCC Grand Prix: Titled Tuesday Blitz"]
[Site "Chess.com"]
[Date "2020.08.25"]
[Round "6"]
[White "Bastiandash"]
[Black "MestreSoares"]
[Result "1/2-1/2"]
[WhiteElo "2389"]
[BlackElo "2145"]
[TimeControl "180+1"]
[EndTime "11:09:27 PDT"]
[Termination "Game drawn by repetition"]

1. e4 {[%clk 0:03:00.9]} 1... Nf6 {[%clk 0:02:57.1]} 2. e5 {[%clk 0:03:00.9]}
2... Nd5 {[%clk 0:02:56.3]} 3. d4 {[%clk 0:03:01.8]} 3... d6 {[%clk 0:02:56.1]}
4. Nf3 {[%clk 0:02:58]} 4... Bg4 {[%clk 0:02:54.5]} 5. Be2 {[%clk 0:02:55.3]}
5... e6 {[%clk 0:02:53.8]} 6. h3 {[%clk 0:02:54]} 6... Bf5 {[%clk 0:02:50.6]} 7.
a3 {[%clk 0:02:50.9]} 7... Be7 {[%clk 0:02:49.7]} 8. c4 {[%clk 0:02:48.7]} 8...
Nb6 {[%clk 0:02:49.6]} 9. Nc3 {[%clk 0:02:49]} 9... O-O {[%clk 0:02:48.8]} 10.
Bf4 {[%clk 0:02:48.1]} 10... N8d7 {[%clk 0:02:39.5]} 11. O-O {[%clk 0:02:44.2]}
11... dxe5 {[%clk 0:02:35.8]} 12. Nxe5 {[%clk 0:02:43.1]} 12... Nxe5 {[%clk
0:02:35.4]} 13. Bxe5 {[%clk 0:02:40.9]} 13... Bf6 {[%clk 0:02:34.6]} 14. b3
{[%clk 0:02:25.6]} 14... Bxe5 {[%clk 0:02:28.9]} 15. dxe5 {[%clk 0:02:26.5]}
15... c6 {[%clk 0:02:28.7]} 16. Bf3 {[%clk 0:02:23.4]} 16... Qc7 {[%clk
0:02:25.3]} 17. Qe2 {[%clk 0:02:22.1]} 17... Rad8 {[%clk 0:02:23.8]} 18. Rad1
{[%clk 0:02:22.3]} 18... Rxd1 {[%clk 0:02:21.4]} 19. Rxd1 {[%clk 0:02:23.2]}
19... Rd8 {[%clk 0:02:21.7]} 20. h4 {[%clk 0:02:11.3]} 20... h6 {[%clk
0:02:18.9]} 21. g4 {[%clk 0:01:56.7]} 21... Bg6 {[%clk 0:02:16.7]} 22. Kg2
{[%clk 0:01:55.8]} 22... Rxd1 {[%clk 0:01:43.1]} 23. Qxd1 {[%clk 0:01:32.2]}
23... Qxe5 {[%clk 0:01:34.4]} 24. Ne2 {[%clk 0:01:14.5]} 24... Be4 {[%clk
0:01:17.7]} 25. Ng3 {[%clk 0:01:14.2]} 25... Bxf3+ {[%clk 0:01:15]} 26. Qxf3
{[%clk 0:01:15.1]} 26... Nd7 {[%clk 0:01:11.4]} 27. b4 {[%clk 0:01:14.2]} 27...
Nf6 {[%clk 0:01:07.5]} 28. Kh3 {[%clk 0:00:59.2]} 28... g5 {[%clk 0:00:44.4]}
29. hxg5 {[%clk 0:00:56.6]} 29... hxg5 {[%clk 0:00:43.1]} 30. Qd3 {[%clk
0:00:54.6]} 30... Kg7 {[%clk 0:00:39.1]} 31. f3 {[%clk 0:00:48.1]} 31... b6
{[%clk 0:00:22.1]} 32. a4 {[%clk 0:00:46.4]} 32... a5 {[%clk 0:00:20.4]} 33. c5
{[%clk 0:00:45.2]} 33... bxc5 {[%clk 0:00:18.3]} 34. bxa5 {[%clk 0:00:45.3]}
34... c4 {[%clk 0:00:18]} 35. Qxc4 {[%clk 0:00:43.8]} 35... Qxa5 {[%clk
0:00:18.4]} 36. Qxc6 {[%clk 0:00:42.1]} 36... Nd5 {[%clk 0:00:18.4]} 37. Qc4
{[%clk 0:00:38.4]} 37... Nf4+ {[%clk 0:00:17.1]} 38. Kh2 {[%clk 0:00:30.4]}
38... Qd2+ {[%clk 0:00:17.4]} 39. Ne2 {[%clk 0:00:18.7]} 39... Nxe2 {[%clk
0:00:17]} 40. Kg2 {[%clk 0:00:08.8]} 40... Nf4+ {[%clk 0:00:16.5]} 41. Kf1
{[%clk 0:00:09.4]} 41... Qg2+ {[%clk 0:00:14]} 42. Ke1 {[%clk 0:00:09.9]} 42...
Qg3+ {[%clk 0:00:13]} 43. Kd2 {[%clk 0:00:08.9]} 43... Qxf3 {[%clk 0:00:13.1]}
44. a5 {[%clk 0:00:08.8]} 44... Qxg4 {[%clk 0:00:11.9]} 45. a6 {[%clk
0:00:08.2]} 45... Qg2+ {[%clk 0:00:12.3]} 46. Kc3 {[%clk 0:00:07.3]} 46... Qf3+
{[%clk 0:00:11.4]} 47. Kb4 {[%clk 0:00:07.1]} 47... Qa8 {[%clk 0:00:07]} 48.
Qd4+ {[%clk 0:00:06.3]} 48... f6 {[%clk 0:00:06.5]} 49. a7 {[%clk 0:00:06.6]}
49... Kg6 {[%clk 0:00:06.1]} 50. Qd7 {[%clk 0:00:05.9]} 50... g4 {[%clk
0:00:05.3]} 51. Kc5 {[%clk 0:00:05.9]} 51... g3 {[%clk 0:00:05]} 52. Kb6 {[%clk
0:00:06.2]} 52... g2 {[%clk 0:00:04.9]} 53. Qd1 {[%clk 0:00:06.6]} 53... Nd5+
{[%clk 0:00:02.8]} 54. Ka6 {[%clk 0:00:06.3]} 54... Nb4+ {[%clk 0:00:02.1]} 55.
Kb6 {[%clk 0:00:06]} 55... Nd5+ {[%clk 0:00:02.3]} 56. Ka6 {[%clk 0:00:06.2]}
56... Nb4+ {[%clk 0:00:02.4]} 57. Kb6 {[%clk 0:00:06.2]} 57... Nd5+ {[%clk
0:00:01.6]} 1/2-1/2

[Event "*** SCC Grand Prix: Titled Tuesday Blitz"]
[Site "Chess.com"]
[Date "2020.08.25"]
[Round "6"]
[White "shineatchess"]
[Black "RobPeresian"]
[Result "0-1"]
[WhiteElo "2211"]
[BlackElo "2377"]
[TimeControl "180+1"]
[EndTime "11:09:27 PDT"]
[Termination "RobPeresian won by checkmate"]

1. e4 {[%clk 0:03:00.9]} 1... e5 {[%clk 0:02:59.5]} 2. Nf3 {[%clk 0:03:01]} 2...
Nc6 {[%clk 0:02:59.8]} 3. Bb5 {[%clk 0:03:00.1]} 3... a6 {[%clk 0:02:59.5]} 4.
Ba4 {[%clk 0:03:00.3]} 4... Nf6 {[%clk 0:02:57.9]} 5. O-O {[%clk 0:03:00.4]}
5... b5 {[%clk 0:02:57.6]} 6. Bb3 {[%clk 0:02:59.3]} 6... Bc5 {[%clk 0:02:56.5]}
7. d3 {[%clk 0:02:54.4]} 7... d6 {[%clk 0:02:55.7]} 8. a4 {[%clk 0:02:53.9]}
8... Rb8 {[%clk 0:02:55.2]} 9. Nc3 {[%clk 0:02:50.4]} 9... h6 {[%clk 0:02:50.3]}
10. Be3 {[%clk 0:02:46.4]} 10... Bxe3 {[%clk 0:02:48.2]} 11. fxe3 {[%clk
0:02:45.7]} 11... O-O {[%clk 0:02:41]} 12. axb5 {[%clk 0:02:45.1]} 12... axb5
{[%clk 0:02:39.6]} 13. Qe1 {[%clk 0:02:32.7]} 13... Be6 {[%clk 0:02:36.5]} 14.
Nd5 {[%clk 0:02:28.8]} 14... Bxd5 {[%clk 0:02:35]} 15. Bxd5 {[%clk 0:02:21.4]}
15... Nxd5 {[%clk 0:02:33.6]} 16. exd5 {[%clk 0:02:21.4]} 16... Ne7 {[%clk
0:02:33.6]} 17. e4 {[%clk 0:02:16.7]} 17... Ng6 {[%clk 0:02:16.7]} 18. b4 {[%clk
0:02:12.1]} 18... f5 {[%clk 0:02:15]} 19. Ra5 {[%clk 0:01:56.5]} 19... Qe8
{[%clk 0:01:48.4]} 20. Ra7 {[%clk 0:01:43.7]} 20... Qd7 {[%clk 0:01:40.2]} 21.
Qc3 {[%clk 0:01:42.2]} 21... Rbc8 {[%clk 0:01:31.2]} 22. Qc6 {[%clk 0:01:28.6]}
22... Qxc6 {[%clk 0:01:18.1]} 23. dxc6 {[%clk 0:01:29.5]} 23... fxe4 {[%clk
0:01:18.9]} 24. dxe4 {[%clk 0:01:28.5]} 24... Rf4 {[%clk 0:01:19.4]} 25. Rb7
{[%clk 0:01:17.7]} 25... Rxe4 {[%clk 0:01:15.4]} 26. Rxb5 {[%clk 0:01:15.1]}
26... Ne7 {[%clk 0:01:15.4]} 27. Nd2 {[%clk 0:01:12.1]} 27... Re2 {[%clk
0:01:11.1]} 28. Rf2 {[%clk 0:01:09.7]} 28... Rxf2 {[%clk 0:01:09.1]} 29. Kxf2
{[%clk 0:01:09.7]} 29... Nxc6 {[%clk 0:01:10]} 30. c3 {[%clk 0:01:06.6]} 30...
Kf7 {[%clk 0:01:09.2]} 31. Rb7 {[%clk 0:01:05.3]} 31... Ke6 {[%clk 0:01:08.9]}
32. Nc4 {[%clk 0:01:01]} 32... d5 {[%clk 0:01:06.3]} 33. Na5 {[%clk 0:00:56.8]}
33... Nxa5 {[%clk 0:01:05.2]} 34. bxa5 {[%clk 0:00:56.4]} 34... Kd6 {[%clk
0:01:05.7]} 35. Rb1 {[%clk 0:00:37.1]} 35... Ra8 {[%clk 0:01:05.5]} 36. Ra1
{[%clk 0:00:37.2]} 36... Ra6 {[%clk 0:01:05.6]} 37. Ke3 {[%clk 0:00:35.2]} 37...
Kc5 {[%clk 0:01:04.1]} 38. Kd3 {[%clk 0:00:27.8]} 38... c6 {[%clk 0:00:48.2]}
39. h4 {[%clk 0:00:24.9]} 39... Ra7 {[%clk 0:00:43.9]} 40. h5 {[%clk 0:00:20.9]}
40... Kb5 {[%clk 0:00:40.9]} 41. a6 {[%clk 0:00:18.2]} 41... Rxa6 {[%clk
0:00:37.7]} 42. Rb1+ {[%clk 0:00:18.3]} 42... Kc5 {[%clk 0:00:36.9]} 43. Rb7
{[%clk 0:00:18.9]} 43... Ra3 {[%clk 0:00:35.9]} 44. Rxg7 {[%clk 0:00:18]} 44...
d4 {[%clk 0:00:36.2]} 45. Rg6 {[%clk 0:00:16.1]} 45... Rxc3+ {[%clk 0:00:35.8]}
46. Kd2 {[%clk 0:00:15.9]} 46... e4 {[%clk 0:00:33.5]} 47. Rxh6 {[%clk 0:00:16]}
47... e3+ {[%clk 0:00:33.9]} 48. Ke2 {[%clk 0:00:13]} 48... Rc2+ {[%clk
0:00:34.1]} 49. Kf3 {[%clk 0:00:10.6]} 49... e2 {[%clk 0:00:31.9]} 50. Kf2
{[%clk 0:00:10]} 50... d3 {[%clk 0:00:31.9]} 51. Re6 {[%clk 0:00:08.9]} 51...
Rc1 {[%clk 0:00:32]} 52. h6 {[%clk 0:00:08.3]} 52... Rf1+ {[%clk 0:00:31.9]} 53.
Kg3 {[%clk 0:00:07.7]} 53... e1=Q+ {[%clk 0:00:32.3]} 54. Rxe1 {[%clk
0:00:06.8]} 54... Rxe1 {[%clk 0:00:32.6]} 55. Kh4 {[%clk 0:00:06.6]} 55... Rh1+
{[%clk 0:00:31]} 56. Kg5 {[%clk 0:00:06.5]} 56... d2 {[%clk 0:00:31.4]} 57. g4
{[%clk 0:00:06.7]} 57... d1=Q {[%clk 0:00:31.5]} 58. Kg6 {[%clk 0:00:07.5]}
58... Qd6+ {[%clk 0:00:31.2]} 59. Kg7 {[%clk 0:00:07.4]} 59... Qxh6+ {[%clk
0:00:30.5]} 60. Kf7 {[%clk 0:00:07.6]} 60... Ra1 {[%clk 0:00:27.1]} 61. g5
{[%clk 0:00:07.2]} 61... Ra7+ {[%clk 0:00:26.9]} 62. Kg8 {[%clk 0:00:06.1]}
62... Qg7# {[%clk 0:00:26.5]} 0-1